bitfinex-derivatives/quotes_BTCF0:USTF0_20250416
["timestamp","ask_amount","ask_price","bid_price","bid_amount"]
[1744776348918,0.03241694,83787.0,83783.0,0.486082]
[1744776348919,0.15177744,83787.0,83786.0,0.1193612]
[1744776349722,0.11947744,83787.0,83786.0,0.1518612]
[1744776350616,0.11947744,83787.0,83786.0,0.1849612]
[1744776351015,0.12847744,83787.0,83786.0,0.1859612]
[1744776351826,0.13347744,83787.0,83786.0,0.1869612]
[1744776352025,0.16407744,83787.0,83786.0,0.1869612]
[1744776352914,0.19417744,83787.0,83786.0,0.1869612]
[1744776355630,0.07481694,83787.0,83786.0,0.1869612]
[1744776355921,0.16407674,83787.0,83786.0,0.1869612]
[1744776356116,0.13347674,83787.0,83786.0,0.1869612]
[1744776356518,0.16507674,83787.0,83786.0,0.1869612]
[1744776357022,0.16507674,83787.0,83786.0,0.1544612]
[1744776357225,0.19787674,83787.0,83786.0,0.1545412]
[1744776359223,0.22957674,83787.0,83786.0,0.1545412]
[1744776366030,0.22957674,83787.0,83786.0,0.5153412]
[1744776366827,0.22957674,83787.0,83786.0,0.1545412]
[1744776367326,0.22957674,83787.0,83786.0,0.5153412]
[1744776369126,0.22957674,83787.0,83786.0,0.5471412]
[1744776370528,0.19787674,83787.0,83786.0,0.5782412]
[1744776372326,0.13347674,83787.0,83786.0,0.5782412]
[1744776372523,1e-08,83792.0,83786.0,0.45888]
[1744776372729,0.1790151,83799.0,83798.0,0.1193441]
[1744776372926,0.17947767,83799.0,83798.0,0.4801441]
[1744776373129,0.1790151,83799.0,83798.0,0.4801441]
[1744776373935,0.1790951,83799.0,83798.0,0.4801441]
[1744776374125,0.1870951,83799.0,83798.0,0.4801441]
[1744776375737,0.2517951,83799.0,83798.0,0.4801441]
[1744776378740,0.2197951,83799.0,83798.0,0.4801441]
[1744776383639,0.1,83800.0,83799.0,0.1193427]
[1744776383832,0.0602614,83800.0,83799.0,0.1193427]
[1744776384228,0.1796026,83800.0,83799.0,0.1193427]
[1744776384432,0.1796026,83800.0,83799.0,0.1519427]
[1744776387440,0.0602614,83800.0,83799.0,0.1519427]
[1744776387838,0.0603414,83800.0,83799.0,0.1519427]
[1744776388041,0.0603414,83800.0,83799.0,0.1834427]
[1744776389042,0.0603414,83800.0,83799.0,0.2156427]
[1744776392240,0.0602614,83800.0,83799.0,0.2156427]
[1744776392850,0.0603414,83800.0,83799.0,0.2156427]
[1744776393742,0.0602614,83800.0,83799.0,0.2156427]
[1744776393945,0.0603414,83800.0,83799.0,0.2156427]
[1744776395851,0.0603414,83800.0,83799.0,0.2176427]
[1744776402657,0.0603414,83800.0,83799.0,0.0342]
[1744776402949,0.1796826,83800.0,83799.0,0.002]
[1744776403855,0.44486416,83800.0,83799.0,0.002]
[1744776404357,0.19486416,83800.0,83799.0,0.002]
[1744776405858,0.44486416,83800.0,83799.0,0.002]
[1744776406856,0.19486416,83800.0,83799.0,0.002]
[1744776414161,0.55566416,83800.0,83799.0,0.002]
[1744776416159,0.19486416,83800.0,83799.0,0.002]
[1744776416457,0.55566416,83800.0,83799.0,0.002]
[1744776417661,0.61846416,83800.0,83799.0,0.002]
[1744776419160,0.64936416,83800.0,83799.0,0.002]
[1744776424568,0.28856416,83800.0,83799.0,0.002]
[1744776424769,0.64936416,83800.0,83799.0,0.002]
[1744776429371,0.65830507,83800.0,83798.0,0.0305]
[1744776429669,0.1193427,83799.0,83798.0,0.02354163]
[1744776430061,0.48908361,83799.0,83798.0,0.02354163]
[1744776430274,0.55108361,83799.0,83798.0,0.02354163]
[1744776430863,0.55108361,83799.0,83798.0,0.02554163]
[1744776432670,0.55108361,83799.0,83798.0,0.02354163]
[1744776432869,0.55108361,83799.0,83798.0,0.02554163]
[1744776433770,0.55108361,83799.0,83798.0,0.02354163]
[1744776433962,0.55108361,83799.0,83798.0,0.02454163]
[1744776435162,0.5421427,83799.0,83798.0,0.02454163]
[1744776436069,0.5104427,83799.0,83798.0,0.02454163]
[1744776436264,0.4801427,83799.0,83798.0,0.02454163]
[1744776436472,0.4801427,83799.0,83798.0,0.14388573]
[1744776436773,0.4802227,83799.0,83798.0,0.14388573]
[1744776437773,0.4802227,83799.0,83798.0,0.02454163]
[1744776438874,0.4802227,83799.0,83798.0,0.02354163]
[1744776439075,0.4802227,83799.0,83798.0,0.05774163]
[1744776439770,0.1194227,83799.0,83798.0,0.05774163]
[1744776443172,0.1194227,83799.0,83798.0,0.17708573]
[1744776444068,8e-05,83799.0,83798.0,0.17708573]
[1744776444274,0.1193427,83799.0,83798.0,0.17708573]
[1744776444572,0.1194227,83799.0,83798.0,0.53788573]
[1744776444773,8e-05,83799.0,83798.0,0.53788573]
[1744776444979,8e-05,83799.0,83798.0,0.78788573]
[1744776445175,0.0103614,83800.0,83799.0,0.1193427]
[1744776445477,0.0103614,83800.0,83799.0,0.1844427]
[1744776446679,0.0103614,83800.0,83799.0,0.4364427]
[1744776446884,0.0104414,83800.0,83799.0,0.4364427]
[1744776447073,0.0103614,83800.0,83799.0,0.4364427]
[1744776447573,0.0104414,83800.0,83799.0,0.4364427]
[1744776448774,0.0104414,83800.0,83799.0,0.4035427]
[1744776449077,0.0104414,83800.0,83799.0,0.4135427]
[1744776452781,0.0104414,83800.0,83799.0,0.1635427]
[1744776454183,0.0103614,83800.0,83799.0,0.4235427]
[1744776454479,8.01e-05,83800.0,83799.0,0.4235427]
[1744776454682,1e-07,83800.0,83799.0,0.4235427]
[1744776454873,8.01e-05,83800.0,83799.0,0.4235427]
[1744776455671,8.01e-05,83800.0,83799.0,0.9855427]
[1744776455872,1e-07,83800.0,83799.0,0.9855427]
[1744776456078,0.005,83812.0,83811.0,0.1193256]
[1744776456281,0.005,83812.0,83811.0,0.5560056]
[1744776456481,0.005,83812.0,83811.0,0.5985056]
[1744776457275,0.005,83812.0,83811.0,0.5995056]
[1744776458982,0.005,83812.0,83811.0,0.6300056]
[1744776459289,0.005,83812.0,83811.0,0.6200056]
[1744776461690,0.005,83812.0,83811.0,0.6300056]
[1744776466696,0.005,83812.0,83811.0,0.6200056]
[1744776468382,0.005,83812.0,83811.0,0.6300056]
[1744776472797,0.00508,83812.0,83811.0,0.6300056]
[1744776474595,0.00508,83812.0,83811.0,0.6400056]
[1744776475695,0.00508,83812.0,83811.0,0.6430056]
[1744776476909,0.00508,83812.0,83811.0,0.6330056]
[1744776477902,0.00508,83812.0,83811.0,0.6230056]
[1744776478104,0.00508,83812.0,83811.0,0.7930056]
[1744776478496,0.0141546,83812.0,83811.0,0.7930056]
[1744776480803,0.0141546,83812.0,83811.0,0.4322056]
[1744776481003,0.0141546,83812.0,83811.0,1.1538056]
[1744776483198,0.0141546,83812.0,83811.0,1.1213056]
[1744776483401,0.1334788,83812.0,83811.0,0.8449256]
[1744776483606,0.0141546,83812.0,83811.0,0.8449256]
[1744776483902,0.1639788,83812.0,83811.0,0.9210856]
[1744776484303,0.0446546,83812.0,83811.0,0.9210856]
[1744776484704,0.1639788,83812.0,83811.0,0.9210856]
[1744776485005,0.1941788,83812.0,83811.0,0.9210856]
[1744776485901,0.1941788,83812.0,83811.0,0.8449256]
[1744776486800,0.0748546,83812.0,83811.0,0.8449256]
[1744776487198,0.0748546,83812.0,83811.0,0.8767256]
[1744776488801,0.06578,83812.0,83811.0,0.8767256]
[1744776492109,0.06578,83812.0,83811.0,0.9097256]
[1744776492709,0.06578,83812.0,83811.0,0.8767256]
[1744776493204,0.00508,83812.0,83811.0,0.8767256]
[1744776493407,0.00508,83812.0,83811.0,0.9097256]
[1744776493608,0.005,83812.0,83811.0,0.9097256]
[1744776493812,0.00508,83812.0,83811.0,0.9097256]
[1744776494510,0.0140464,83812.0,83811.0,0.9097256]
[1744776496811,0.00508,83812.0,83811.0,0.9097256]
[1744776498011,0.00508,83812.0,83811.0,0.9197256]
[1744776498505,0.0140378,83812.0,83811.0,0.9197256]
[1744776498700,0.0139578,83812.0,83811.0,0.9197256]
[1744776499015,0.0140378,83812.0,83811.0,0.9297256]
[1744776500112,0.0140378,83812.0,83811.0,1.4897256]
[1744776500312,0.00010801,83824.0,83823.0,0.1193085]
[1744776500512,0.00010801,83824.0,83823.0,0.8305685]
[1744776500710,0.0973,83832.0,83823.0,0.8305685]
[1744776500711,0.0973,83832.0,83831.0,0.1192971]
[1744776500905,0.0973,83832.0,83831.0,0.4800971]
[1744776501214,0.0973,83832.0,83831.0,0.5130971]
[1744776501409,0.00010801,83833.0,83831.0,0.3938]
[1744776501605,0.005,83838.0,83837.0,0.1192886]
[1744776501805,0.005,83838.0,83837.0,0.5562486]
[1744776502006,0.005,83838.0,83837.0,0.6204486]
[1744776502208,0.005,83838.0,83837.0,0.63485801]
[1744776502510,0.00508,83838.0,83837.0,0.63485801]
[1744776502716,0.005,83838.0,83837.0,0.6204486]
[1744776502912,0.00508,83838.0,83837.0,0.62950891]
[1744776503110,0.00508,83838.0,83837.0,0.59830891]
[1744776503316,0.00508,83838.0,83837.0,0.60230891]
[1744776504423,0.00508,83838.0,83837.0,0.52614891]
[1744776504721,0.1243671,83838.0,83837.0,0.49314891]
[1744776505014,0.1192957,83833.0,83831.0,0.3608]
[1744776505212,0.1192957,83833.0,83832.0,0.1192951]
[1744776506420,0.1192957,83833.0,83832.0,0.1232951]
[1744776509016,0.1192957,83833.0,83832.0,0.13139383]
[1744776512016,0.1192957,83833.0,83832.0,0.01209873]
[1744776512217,0.1193042,83826.0,83825.0,0.0596522]
[1744776512526,0.12827234,83826.0,83825.0,0.0596522]
[1744776512725,0.15987234,83826.0,83825.0,0.0596522]
[1744776513323,0.00896814,83826.0,83825.0,0.2386021]
[1744776513517,0.00896814,83826.0,83825.0,0.5994021]
[1744776514228,0.00896814,83826.0,83825.0,0.6004021]
[1744776514428,0.00896814,83826.0,83825.0,0.6304021]
[1744776514613,0.00896814,83826.0,83825.0,0.63949399]
[1744776514824,0.00896814,83826.0,83825.0,0.64349399]
[1744776515022,0.00904814,83826.0,83825.0,0.64349399]
[1744776515228,0.12835234,83826.0,83825.0,0.64449399]
[1744776515624,0.12835234,83826.0,83825.0,0.64549399]
[1744776516327,0.12835234,83826.0,83825.0,0.49719629]
[1744776516526,0.12835234,83826.0,83825.0,0.13639629]
[1744776517924,0.12835234,83826.0,83825.0,0.13539629]
[1744776518229,0.12835234,83826.0,83825.0,0.13439629]
[1744776519026,0.16025234,83826.0,83825.0,0.01009189]
[1744776519221,0.16025234,83826.0,83825.0,0.006]
[1744776519929,0.16025234,83826.0,83825.0,0.00084667]
[1744776520529,0.16025234,83826.0,83825.0,0.00184667]
[1744776520718,0.16025234,83826.0,83825.0,0.1203056]
[1744776520916,0.16025234,83826.0,83825.0,0.1253056]
[1744776521220,0.16025234,83826.0,83825.0,0.1243056]
[1744776521416,0.16025234,83826.0,83825.0,0.1203056]
[1744776522725,0.16017234,83826.0,83825.0,0.1213056]
[1744776522926,0.16025234,83826.0,83825.0,0.1213056]
[1744776523524,0.16025234,83826.0,83825.0,0.1522056]
[1744776523828,0.16125234,83826.0,83825.0,0.1522056]
[1744776524030,0.04194814,83826.0,83825.0,0.1522056]
[1744776524225,0.01004814,83826.0,83825.0,0.1622056]
[1744776524429,0.01004814,83826.0,83825.0,0.5130056]
[1744776524730,0.00996814,83826.0,83825.0,0.5130056]
[1744776525430,0.01004814,83826.0,83825.0,0.5130056]
[1744776526522,0.12935234,83826.0,83825.0,0.5130056]
[1744776529530,0.15975234,83826.0,83825.0,0.5130056]
[1744776531040,0.12935234,83826.0,83825.0,0.5130056]
[1744776531535,0.19165234,83826.0,83825.0,0.1846056]
[1744776534327,0.19165234,83826.0,83825.0,0.0344]
[1744776534736,0.19165234,83826.0,83825.0,0.02320748]
[1744776534936,0.1193085,83823.0,83822.0,0.00904628]
[1744776535135,0.1193128,83820.0,83819.0,0.0312]
[1744776535340,0.12828094,83820.0,83819.0,0.0312]
[1744776536245,0.12828094,83820.0,83819.0,0.1505142]
[1744776537246,0.12828094,83820.0,83819.0,0.1525142]
[1744776538744,0.12828094,83820.0,83819.0,0.16166962]
[1744776538944,0.12828094,83820.0,83819.0,0.16066962]
[1744776539441,0.12828094,83820.0,83819.0,0.001]
[1744776540143,0.0596574,83819.0,83815.0,0.00017897]
[1744776540348,0.119327,83810.0,83809.0,0.0327]
[1744776540538,0.119327,83810.0,83809.0,0.02374507]
[1744776540737,0.119337,83803.0,83799.0,0.1364713]
[1744776540939,0.1514384,83802.0,83801.0,0.4801398]
[1744776541339,0.16040654,83802.0,83801.0,0.4801398]
[1744776541646,0.16040654,83802.0,83799.0,0.1790126]
[1744776541647,0.1193412,83800.0,83799.0,0.1790126]
[1744776541947,0.12830934,83800.0,83799.0,0.1790126]
[1744776542334,0.16040934,83800.0,83799.0,0.1790126]
[1744776543148,0.1193498,83794.0,83793.0,0.00025897]
[1744776543446,0.1193541,83791.0,83790.0,0.000108]
[1744776543645,0.1193612,83786.0,83785.0,0.0649]
[1744776544137,0.12832934,83786.0,83785.0,0.0649]
[1744776544949,0.16112934,83786.0,83785.0,0.0649]
[1744776545246,0.16112934,83786.0,83785.0,0.0669]
[1744776547449,0.16112934,83786.0,83785.0,0.06698]
[1744776548147,0.0596837,83782.0,83778.0,0.0001458]
[1744776548447,0.1193697,83780.0,83779.0,0.0316]
[1744776548644,0.1193697,83780.0,83779.0,0.04067093]
[1744776548845,0.1841697,83780.0,83779.0,0.04075093]
[1744776549146,0.19313784,83780.0,83779.0,0.04075093]
[1744776549942,0.19313784,83780.0,83779.0,0.07195093]
[1744776550539,0.19313784,83780.0,83779.0,0.07295093]
[1744776550938,0.19313784,83780.0,83779.0,0.07695093]
[1744776551741,0.19313784,83780.0,83779.0,0.19632213]
[1744776551937,0.16023784,83780.0,83779.0,0.19632213]
[1744776553243,0.00896814,83780.0,83779.0,0.19632213]
[1744776553440,0.00017897,83788.0,83787.0,0.1193598]
[1744776553842,0.00017897,83788.0,83787.0,0.1819598]
[1744776554052,0.00017897,83788.0,83787.0,0.3519598]
[1744776554244,0.0596643,83809.0,83787.0,0.4826]
[1744776554448,0.0596643,83809.0,83808.0,0.119327]
[1744776554851,0.0597443,83809.0,83808.0,0.119327]
[1744776555052,0.1193298,83808.0,83807.0,0.0626]
[1744776555252,0.1496298,83808.0,83807.0,0.0626]
[1744776555757,0.1496298,83808.0,83807.0,0.1819313]
[1744776557255,0.1546298,83808.0,83807.0,0.1819313]
[1744776557954,0.1496298,83808.0,83807.0,0.1819313]
[1744776558161,0.1496298,83808.0,83807.0,0.1829313]
[1744776560461,0.1496298,83808.0,83807.0,0.1819313]
[1744776560656,0.1496298,83808.0,83807.0,0.1829313]
[1744776561057,0.1496298,83808.0,83807.0,0.1819313]
[1744776561257,0.1496298,83808.0,83807.0,0.1829313]
[1744776564357,0.1803298,83808.0,83807.0,0.1829313]
[1744776564663,0.1803298,83808.0,83807.0,0.0636]
[1744776564858,0.1803298,83808.0,83807.0,0.001]
[1744776565562,0.19030593,83808.0,83807.0,0.001]
[1744776565763,0.1193384,83802.0,83801.0,0.031]
[1744776566462,0.4249,83803.0,83790.0,8e-05]
[1744776566668,0.1193541,83791.0,83790.0,0.1193555]
[1744776566974,0.1193541,83791.0,83790.0,0.1194355]
[1744776567177,0.2146541,83791.0,83790.0,0.1194355]
[1744776567677,0.2146541,83791.0,83790.0,0.1512355]
[1744776567678,0.22463023,83791.0,83790.0,0.1512355]
[1744776568265,0.22463023,83791.0,83790.0,0.1522355]
[1744776569972,0.22463023,83791.0,83790.0,0.1512355]
[1744776570173,0.22463023,83791.0,83790.0,0.1522355]
[1744776570973,0.22463023,83791.0,83790.0,0.00108]
[1744776571168,0.22463023,83791.0,83790.0,0.001]
[1744776571373,0.22463023,83791.0,83790.0,0.00108]
[1744776571574,0.22463023,83791.0,83790.0,8e-05]
[1744776574476,0.58543023,83791.0,83790.0,8e-05]
[1744776576083,0.58543023,83791.0,83783.0,0.0905907]
[1744776576084,0.1193655,83783.0,83769.0,0.07984]
[1744776576385,0.1193655,83783.0,83781.0,0.000108]
[1744776576580,0.1193655,83783.0,83781.0,0.1193682]
[1744776576783,0.12934163,83783.0,83782.0,0.00025897]
[1744776577086,0.0596844,83781.0,83768.0,0.0596927]
[1744776577279,0.1193811,83772.0,83771.0,0.0306]
[1744776577476,0.1193811,83772.0,83771.0,0.1499826]
[1744776577677,0.12935723,83772.0,83771.0,0.1499826]
[1744776578082,0.19385723,83772.0,83771.0,0.1499826]
[1744776578279,0.1193854,83769.0,83768.0,0.1223868]
[1744776578984,0.12936153,83769.0,83768.0,0.1193868]
[1744776579180,0.16086153,83769.0,83768.0,0.1203868]
[1744776579579,0.16086153,83769.0,83768.0,0.1273868]
[1744776580592,0.16086153,83769.0,83768.0,0.1293868]
[1744776580788,0.00997613,83769.0,83768.0,0.1293868]
[1744776581490,0.00997613,83769.0,83768.0,0.5001868]
[1744776585706,0.00997613,83769.0,83768.0,0.50158181]
[1744776585996,0.00017897,83780.0,83779.0,0.1193712]
[1744776586192,0.00017897,83780.0,83779.0,0.4801712]
[1744776586889,0.00017897,83780.0,83779.0,0.5404712]
[1744776587088,0.00017897,83780.0,83779.0,0.5414712]
[1744776589599,0.11954867,83780.0,83779.0,0.5414712]
[1744776590296,0.11954867,83780.0,83779.0,0.00108]
[1744776590485,0.11954867,83780.0,83779.0,0.00247501]
[1744776590691,0.15094867,83780.0,83779.0,0.00247501]
[1744776590892,0.15094867,83780.0,83779.0,0.00239501]
[1744776591195,0.1790667,83776.0,83775.0,0.1193757]
[1744776591589,0.2417667,83776.0,83775.0,0.1193757]
[1744776592299,0.2417667,83776.0,83775.0,0.1213757]
[1744776592695,0.1223884,83776.0,83775.0,0.002]
[1744776592892,0.1223884,83776.0,83775.0,0.1213769]
[1744776593789,0.1223884,83776.0,83773.0,0.0596898]
[1744776593993,0.0596915,83771.0,83768.0,0.1193868]
[1744776594193,0.1193868,83769.0,83768.0,0.1790795]
[1744776594496,0.1193868,83769.0,83768.0,0.1791595]
[1744776594695,0.1838868,83769.0,83768.0,0.1791595]
[1744776595396,0.1838868,83769.0,83768.0,0.1831595]
[1744776595786,0.1838868,83769.0,83768.0,0.23165224]
[1744776596192,0.1838868,83769.0,83768.0,0.26205224]
[1744776596694,0.1838868,83769.0,83768.0,0.26505224]
[1744776597295,0.1838868,83769.0,83768.0,0.1568654]
[1744776598087,0.1950399,83769.0,83768.0,0.1568654]
[1744776598395,0.1950399,83769.0,83768.0,0.1879654]
[1744776600290,0.1950399,83769.0,83768.0,0.1282727]
[1744776601097,0.1638385,83769.0,83768.0,0.1282727]
[1744776601396,0.1638385,83769.0,83768.0,0.0667727]
[1744776601604,0.1638385,83769.0,83768.0,0.0999727]
[1744776601788,0.1638385,83769.0,83768.0,0.1308727]
[1744776602097,0.1638385,83769.0,83768.0,0.1595868]
[1744776602407,0.1638385,83769.0,83768.0,0.1596668]
[1744776602893,0.1638385,83769.0,83768.0,0.1595868]
[1744776603096,0.1638385,83769.0,83768.0,0.1596668]
[1744776603493,0.1638385,83769.0,83768.0,0.1264668]
[1744776603693,0.1638385,83769.0,83768.0,0.00708]
[1744776605099,0.1638385,83769.0,83768.0,0.007]
[1744776605298,0.1638385,83769.0,83768.0,0.00708]
[1744776605693,0.1638385,83769.0,83768.0,0.007]
[1744776605897,0.1638385,83769.0,83768.0,0.00708]
[1744776606093,0.1193925,83764.0,83763.0,0.00017897]
[1744776606400,0.1194011,83758.0,83757.0,0.00513387]
[1744776606600,0.1194082,83753.0,83752.0,0.0619]
[1744776607192,0.1305613,83753.0,83752.0,0.1500096]
[1744776607503,0.1305613,83753.0,83752.0,0.1194096]
[1744776607802,0.1305613,83753.0,83752.0,0.1194896]
[1744776607990,0.1305613,83753.0,83752.0,0.1254896]
[1744776608194,0.1950613,83753.0,83752.0,0.1569896]
[1744776608699,0.1950613,83753.0,83752.0,0.1254896]
[1744776609296,0.1950613,83753.0,83752.0,0.00608]
[1744776609599,0.1950613,83753.0,83752.0,0.01008]
[1744776609794,0.1950613,83753.0,83752.0,0.1294896]
[1744776610397,0.0435531,83753.0,83752.0,0.13862347]
[1744776610704,0.0111531,83753.0,83752.0,0.20152347]
[1744776611000,0.1044156,83780.0,83752.0,0.20152347]
[1744776611001,0.1044156,83780.0,83757.0,0.0597011]
[1744776611305,0.0596885,83775.0,83774.0,0.1193769]
[1744776612400,0.0913885,83775.0,83774.0,0.1193769]
[1744776613101,0.1193783,83774.0,83773.0,0.0328]
[1744776613506,0.1802783,83774.0,83773.0,0.0328]
[1744776614300,0.1802783,83774.0,83773.0,0.1521797]
[1744776614504,0.1812783,83774.0,83773.0,0.1521797]
[1744776615503,0.1790816,83769.0,83768.0,0.1193859]
[1744776615699,0.1193883,83767.0,83766.0,0.00017908]
[1744776616296,0.5730883,83767.0,83766.0,0.00017908]
[1744776616495,0.1194068,83754.0,83753.0,0.0332]
[1744776616996,0.1194068,83754.0,83753.0,0.1526057]
[1744776617207,0.1194068,83754.0,83753.0,0.0332]
[1744776617501,0.1194068,83754.0,83753.0,0.03328]
[1744776617692,0.1194068,83754.0,83753.0,0.1576882]
[1744776617893,0.1799068,83754.0,83753.0,0.005]
[1744776618095,0.1799068,83754.0,83745.0,0.11959868]
[1744776618096,0.1194182,83746.0,83745.0,0.11959868]
[1744776618309,0.1194182,83746.0,83745.0,0.00017908]
[1744776618606,0.1194182,83746.0,83745.0,0.11959868]
[1744776618992,0.1495182,83746.0,83745.0,0.15279868]
[1744776619703,0.1495182,83746.0,83745.0,0.15779868]
[1744776620099,0.1495182,83746.0,83745.0,0.16379868]
[1744776620806,0.1495182,83746.0,83745.0,0.17262068]
[1744776621302,0.1194182,83746.0,83745.0,0.17262068]
[1744776621694,0.1194182,83746.0,83745.0,0.16664597]
[1744776622801,0.1194182,83746.0,83745.0,0.053022]
[1744776623394,0.1194182,83746.0,83745.0,0.1724416]
[1744776623602,0.13004131,83746.0,83745.0,0.1723616]
[1744776623800,0.13004131,83746.0,83745.0,0.1724416]
[1744776624002,0.13004131,83746.0,83745.0,0.1714416]
[1744776625209,0.13004131,83746.0,83745.0,0.1704416]
[1744776635115,0.13004131,83746.0,83745.0,0.2026416]
[1744776636612,0.01062311,83746.0,83745.0,0.2026416]
[1744776636814,0.01062311,83746.0,83745.0,0.2355416]
[1744776637418,0.0596991,83760.0,83759.0,0.179096]
[1744776637615,0.00017908,83762.0,83761.0,0.1193968]
[1744776637916,0.1193794,83774.0,83773.0,0.1193783]
[1744776638114,0.3608,83775.0,83774.0,0.1193783]
[1744776638615,0.4801769,83775.0,83774.0,0.1193783]
[1744776639619,0.5117769,83775.0,83774.0,0.1193783]
[1744776639809,0.5157769,83775.0,83774.0,0.11340545]
[1744776644507,0.5157769,83775.0,83773.0,0.0304]
[1744776644508,0.3964,83775.0,83773.0,0.0304]
[1744776644819,0.1193868,83768.0,83767.0,0.5995696]
[1744776645223,0.1193868,83768.0,83767.0,0.5996496]
[1744776646223,0.1504868,83768.0,83767.0,0.6323496]
[1744776646724,0.1524868,83768.0,83767.0,0.6323496]
[1744776648719,0.1213868,83768.0,83767.0,0.6323496]
[1744776649920,0.13108826,83768.0,83767.0,0.6323496]
[1744776651230,0.13108826,83768.0,83767.0,0.2715496]
[1744776653131,0.13108826,83768.0,83767.0,0.0924728]
[1744776654923,0.13108826,83768.0,83767.0,0.1233728]
[1744776655827,0.13108826,83768.0,83767.0,0.20259957]
[1744776661027,0.16168826,83768.0,83767.0,0.20259957]
[1744776667931,0.01170146,83768.0,83767.0,0.20259957]
[1744776671735,0.01170146,83768.0,83767.0,0.76259957]
[1744776672146,0.002,83768.0,83767.0,0.76259957]
[1744776673140,0.00931996,83768.0,83767.0,0.76259957]
[1744776673344,0.00931996,83768.0,83767.0,0.76459957]
[1744776673537,0.00931996,83768.0,83767.0,0.11939957]
[1744776673739,0.00931996,83768.0,83767.0,0.20191957]
[1744776674040,0.00931996,83768.0,83767.0,0.20391957]
[1744776674542,0.00931996,83768.0,83767.0,0.20599957]
[1744776675244,0.00931996,83768.0,83767.0,0.20399957]
[1744776675441,0.00931996,83768.0,83767.0,0.20599957]
[1744776675839,0.00931996,83768.0,83767.0,0.20499957]
[1744776676236,0.033,83775.0,83774.0,0.1193783]
[1744776676435,0.033,83775.0,83774.0,0.4801783]
[1744776677338,0.03,83782.0,83781.0,0.1193683]
[1744776677546,0.1493669,83782.0,83781.0,0.11040966]
[1744776678447,0.1798669,83782.0,83781.0,0.11040966]
[1744776679338,0.1828669,83782.0,83781.0,0.11040966]
[1744776680849,0.1193754,83776.0,83775.0,0.4801751]
[1744776681349,0.1193754,83776.0,83775.0,0.4802551]
[1744776681744,0.1193754,83776.0,83775.0,0.47428253]
[1744776682047,0.1833754,83776.0,83775.0,0.47428253]
[1744776682239,0.1843754,83776.0,83775.0,0.47420253]
[1744776682547,0.1843754,83776.0,83775.0,0.47528253]
[1744776683240,0.1833754,83776.0,83775.0,0.47528253]
[1744776683439,0.1873754,83776.0,83775.0,0.47528253]
[1744776683942,0.1873754,83776.0,83775.0,0.47428253]
[1744776684143,0.1883754,83776.0,83775.0,0.47428253]
[1744776686648,0.1883754,83776.0,83775.0,0.1194551]
[1744776686848,0.1883754,83776.0,83775.0,8e-05]
[1744776687450,0.1883754,83776.0,83773.0,0.1193793]
[1744776687649,0.1193783,83774.0,83773.0,0.11049953]
[1744776688155,0.1817783,83774.0,83773.0,0.11049953]
[1744776689149,0.1847783,83774.0,83773.0,0.11049953]
[1744776689655,0.19410693,83774.0,83773.0,0.11049953]
[1744776690752,0.19510693,83774.0,83773.0,0.11049953]
[1744776692251,0.19510693,83774.0,83773.0,0.14209953]
[1744776694152,0.01332863,83774.0,83773.0,0.50289953]
[1744776694355,0.01332863,83774.0,83773.0,0.53349953]
[1744776695452,0.01332863,83774.0,83773.0,0.54682622]
[1744776697649,0.01032863,83774.0,83773.0,0.54682622]
[1744776697851,0.00932863,83774.0,83773.0,0.54882622]
[1744776703453,0.00932863,83774.0,83773.0,0.53549953]
[1744776714267,0.00932863,83774.0,83773.0,0.62025953]
[1744776714871,0.00017908,83783.0,83773.0,0.50976]
[1744776715073,0.00017908,83783.0,83782.0,0.4801669]
[1744776715274,0.00017908,83783.0,83782.0,0.5419669]
[1744776716090,0.00017908,83783.0,83782.0,0.5734669]
[1744776717982,0.00217908,83783.0,83782.0,0.5734669]
[1744776718577,0.00017908,83783.0,83782.0,0.5734669]
[1744776720278,0.00017908,83783.0,83782.0,0.5744669]
[1744776720983,0.00017908,83783.0,83782.0,0.5734669]
[1744776721185,0.00821954,83791.0,83790.0,0.1193555]
[1744776721482,0.00821954,83791.0,83790.0,0.4801555]
[1744776721678,0.00821954,83791.0,83790.0,0.5105555]
[1744776721881,0.00829954,83791.0,83790.0,0.5105555]
[1744776722275,0.00821954,83791.0,83790.0,0.5105555]
[1744776722479,0.01129954,83791.0,83790.0,0.5411555]
[1744776723692,0.01129954,83791.0,83790.0,0.55018509]
[1744776725887,8e-05,83791.0,83790.0,0.55018509]
[1744776726092,0.0325,83797.0,83796.0,0.1193469]
[1744776726591,0.0325,83797.0,83796.0,0.1825469]
[1744776727482,0.04166476,83797.0,83796.0,0.1825469]
[1744776727682,0.04466476,83797.0,83796.0,0.1825469]
[1744776727988,0.04474476,83797.0,83796.0,0.1825469]
[1744776728291,0.04574476,83797.0,83796.0,0.1825469]
[1744776740697,0.04574476,83797.0,83796.0,0.1496469]
[1744776743290,0.04574476,83797.0,83796.0,0.1816469]
[1744776744497,0.16509026,83797.0,83796.0,0.1193469]
[1744776744702,0.16509026,83797.0,83796.0,0.2017069]
[1744776744903,0.04574476,83797.0,83796.0,0.2017069]
[1744776745103,0.04566476,83797.0,83796.0,0.2017069]
[1744776745802,0.07896476,83797.0,83796.0,0.2017069]
[1744776746206,0.07939276,83797.0,83796.0,0.2017069]
[1744776746904,0.19873826,83797.0,83796.0,0.2017069]
[1744776748303,0.19873826,83797.0,83796.0,0.1193469]
[1744776749309,0.179024,83795.0,83794.0,0.1193489]
[1744776749700,0.18818876,83795.0,83794.0,0.1193489]
[1744776750809,0.19118876,83795.0,83794.0,0.1193489]
[1744776751612,0.19218876,83795.0,83794.0,0.1193489]
[1744776753813,0.19218876,83795.0,83794.0,0.1516489]
[1744776756306,0.19218876,83795.0,83794.0,0.1844489]
[1744776764515,0.19218876,83795.0,83794.0,0.17549174]
[1744776774126,0.19218876,83795.0,83794.0,0.11039174]
[1744776775828,0.19218876,83795.0,83794.0,0.17379174]
[1744776783234,0.25478876,83795.0,83794.0,0.17379174]
[1744776807368,0.25378876,83795.0,83794.0,0.17379174]
[1744776807570,0.25478876,83795.0,83794.0,0.17379174]
[1744776809974,0.25478876,83795.0,83794.0,0.16782031]
[1744776810174,0.25478876,83795.0,83794.0,0.15886316]
[1744776818579,0.22378876,83795.0,83794.0,0.15886316]
[1744776818779,0.19218876,83795.0,83794.0,0.15886316]
[1744776819679,0.19218876,83795.0,83794.0,0.09546316]
[1744776819979,0.22488876,83795.0,83794.0,0.15916316]
[1744776820482,0.22488876,83795.0,83794.0,0.09546316]
[1744776820874,0.22488876,83795.0,83794.0,0.08650584]
[1744776821074,0.58568876,83795.0,83794.0,0.08650584]
[1744776822476,0.1193512,83793.0,83792.0,0.0596756]
[1744776823076,0.1819512,83793.0,83792.0,0.0596756]
[1744776823677,0.1829512,83793.0,83792.0,0.0596756]
[1744776823877,0.19211596,83793.0,83792.0,0.0596756]
[1744776824873,0.1193541,83791.0,83790.0,8e-05]